Workbook

Sheet 婚礼预算
B4: 婚礼日期:
B5: =TODAY()+365 -> 2020-06-28
B7: 类别 | C7: 估计 | D7: 实际 | E7: 超出/不足 | F7: 已完成
B8: 服装 | C8: =服装预估总计 -> 9,490.00 | D8: =服装实际总计 -> 9,770.00 | E8: =预算摘要[[#This Row],[估计]]-预算摘要[[#This Row],[实际]] -> -280.00 | F8: =服装就绪 -> 否
B9: 宴会 | C9: =宴会预估总计 -> 1,050.00 | D9: =宴会实际总计 -> 928.00 | E9: =预算摘要[[#This Row],[估计]]-预算摘要[[#This Row],[实际]] -> 122.00 | F9: =宴会就绪 -> 是
B10: 音乐 | C10: =音乐娱乐预估总计 -> 600.00 | D10: =音乐娱乐实际总计 -> 500.00 | E10: =预算摘要[[#This Row],[估计]]-预算摘要[[#This Row],[实际]] -> 100.00 | F10: =音乐就绪 -> 是
B11: 印刷 | C11: =印刷纸品预估总计 -> 935.00 | D11: =印刷纸品实际总计 -> 870.00 | E11: =预算摘要[[#This Row],[估计]]-预算摘要[[#This Row],[实际]] -> 65.00 | F11: =印刷品就绪 -> 否
B12: 摄影 | C12: =摄影预估总计 -> 1,625.00 | D12: =摄影实际总计 -> 1,575.00 | E12: =预算摘要[[#This Row],[估计]]-预算摘要[[#This Row],[实际]] -> 50.00 | F12: =摄影就绪 -> 否
B13: 装饰 | C13: =装饰预估总计 -> 700.00 | D13: =装饰实际总计 -> 720.00 | E13: =预算摘要[[#This Row],[估计]]-预算摘要[[#This Row],[实际]] -> -20.00 | F13: =装饰就绪 -> 是
B14: 花卉 | C14: =花卉预估总计 -> 900.00 | D14: =花卉实际总计 -> 850.00 | E14: =预算摘要[[#This Row],[估计]]-预算摘要[[#This Row],[实际]] -> 50.00 | F14: =花卉就绪 -> 否
B15: 礼品 | C15: =礼品预估总计 -> 1,345.00 | D15: =礼品实际总计 -> 1,075.00 | E15: =预算摘要[[#This Row],[估计]]-预算摘要[[#This Row],[实际]] -> 270.00 | F15: =礼品就绪 -> 否
B16: 旅行 | C16: =旅行交通预估总计 -> 100.00 | D16: =旅行交通实际总计 -> 165.00 | E16: =预算摘要[[#This Row],[估计]]-预算摘要[[#This Row],[实际]] -> -65.00 | F16: =旅行交通就绪 -> 是
B17: 其他 | C17: =其他费用预估总计 -> 885.00 | D17: =其他费用实际总计 -> 1,021.00 | E17: =预算摘要[[#This Row],[估计]]-预算摘要[[#This Row],[实际]] -> -136.00 | F17: =其他就绪 -> 否
B18: 总支出 | C18: =SUBTOTAL(109,预算摘要[估计]) -> 17,630.00 | D18: =SUBTOTAL(109,预算摘要[实际]) -> 17,474.00 | E18: =SUBTOTAL(109,预算摘要[超出/不足]) -> 156.00
B19: 显示各类别费用百分比的图表位于此单元格中。

Sheet 费用
B2: 服装
B4: 类别 | C4: 估计 | D4: 实际 | E4: 超出/不足
B5: 订婚戒指 | C5: 1,500.00 | D5: 1,500.00 | E5: =费用!$C5-费用!$D5 -> 0.00
B6: 准配偶 1 婚戒 | C6: 2,000.00 | D6: 2,300.00 | E6: =费用!$C6-费用!$D6 -> -300.00
B7: 准配偶 1 礼服/无尾晚礼服 | C7: 3,000.00 | D7: 2,750.00 | E7: =费用!$C7-费用!$D7 -> 250.00
B8: 准配偶 1 面纱/头巾 | C8: 500.00 | D8: 500.00 | E8: =费用!$C8-费用!$D8 -> 0.00
B9: 准配偶 1 鞋 | C9: 350.00 | D9: 300.00 | E9: =费用!$C9-费用!$D9 -> 50.00
B10: 准配偶 1 首饰 | C10: 400.00 | D10: 550.00 | E10: =费用!$C10-费用!$D10 -> -150.00
B11: 准配偶 1 袜子 | C11: 20.00 | D11: 20.00 | E11: =费用!$C11-费用!$D11 -> 0.00
B12: 准配偶 2 婚戒 | C12: 300.00 | D12: 250.00 | E12: =费用!$C12-费用!$D12 -> 50.00
B13: 准配偶 2 礼服/无尾晚礼服 | C13: 300.00 | D13: 350.00 | E13: =费用!$C13-费用!$D13 -> -50.00
B14: 准配偶 2 面纱/头巾 | C14: 500.00 | D14: 500.00 | E14: =费用!$C14-费用!$D14 -> 0.00
B15: 准配偶 2 鞋 | C15: 200.00 | D15: 175.00 | E15: =费用!$C15-费用!$D15 -> 25.00
B16: 准配偶 2 首饰 | C16: 400.00 | D16: 550.00 | E16: =费用!$C16-费用!$D16 -> -150.00
B17: 准配偶 2 袜子 | C17: 20.00 | D17: 25.00 | E17: =费用!$C17-费用!$D17 -> -5.00
B18: 服装总计 | C18: =SUBTOTAL(109,服装[估计]) -> 9,490.00 | D18: =SUBTOTAL(109,服装[实际]) -> 9,770.00 | E18: =SUBTOTAL(109,服装[超出/不足]) -> -280.00
D20: ="是否完成了"&B2&"类别的所有费用？" -> 是否完成了服装类别的所有费用？ | E20: 否
B22: 宴会*
B24: 类别 | C24: 估计 | D24: 实际 | E24: 超出/不足
B25: 房间/大厅费用 | C25: 200.00 | D25: 150.00 | E25: =费用!$C25-费用!$D25 -> 50.00
B26: 桌椅 | C26: 100.00 | D26: 50.00 | E26: =费用!$C26-费用!$D26 -> 50.00
B27: 食物 | C27: 0.00 | D27: 0.00 | E27: =费用!$C27-费用!$D27 -> 0.00
B28: 饮料 | C28: 0.00 | D28: 0.00 | E28: =费用!$C28-费用!$D28 -> 0.00
B29: 亚麻布 | C29: 0.00 | D29: 0.00 | E29: =费用!$C29-费用!$D29 -> 0.00
B30: 蛋糕 | C30: 700.00 | D30: 700.00 | E30: =费用!$C30-费用!$D30 -> 0.00
B31: 惠赠 | C31: 50.00 | D31: 28.00 | E31: =费用!$C31-费用!$D31 -> 22.00
B32: 服务人员和小费 | C32: 0.00 | D32: 0.00 | E32: =费用!$C32-费用!$D32 -> 0.00
B33: 宴会总计 | C33: =SUBTOTAL(109,宴会[估计]) -> 1,050.00 | D33: =SUBTOTAL(109,宴会[实际]) -> 928.00 | E33: =SUBTOTAL(109,宴会[超出/不足]) -> 122.00
B34: *不包括娱乐和装饰
D36: ="是否完成了"&B22&"类别的所有费用？" -> 是否完成了宴会*类别的所有费用？ | E36: 是
B38: 音乐/娱乐
B40: 类别 | C40: 估计 | D40: 实际 | E40: 超出/不足
B41: 典礼的歌手 | C41: 400.00 | D41: 400.00 | E41: =费用!$C41-费用!$D41 -> 0.00
B42: 宴会乐队/DJ | C42: 200.00 | D42: 100.00 | E42: =费用!$C42-费用!$D42 -> 100.00
B43: 音乐/娱乐总计 | C43: =SUBTOTAL(109,音乐[估计]) -> 600.00 | D43: =SUBTOTAL(109,音乐[实际]) -> 500.00 | E43: =SUBTOTAL(109,音乐[超出/不足]) -> 100.00
D45: ="是否完成了"&B38&"类别的所有费用？" -> 是否完成了音乐/娱乐类别的所有费用？ | E45: 是
B47: 印刷/纸品
B49: 类别 | C49: 估计 | D49: 实际 | E49: 超出/不足
B50: 喜帖 | C50: 500.00 | D50: 450.00 | E50: =费用!$C50-费用!$D50 -> 50.00
B51: 公告 | C51: 200.00 | D51: 175.00 | E51: =费用!$C51-费用!$D51 -> 25.00
B52: 感谢卡片 | C52: 100.00 | D52: 100.00 | E52: =费用!$C52-费用!$D52 -> 0.00
B53: 个人便条 | C53: 0.00 | D53: 0.00 | E53: =费用!$C53-费用!$D53 -> 0.00
B54: 来宾簿 | C54: 25.00 | D54: 25.00 | E54: =费用!$C54-费用!$D54 -> 0.00
B55: 节目单 | C55: 75.00 | D55: 80.00 | E55: =费用!$C55-费用!$D55 -> -5.00
B56: 宴会纸巾 | C56: 35.00 | D56: 40.00 | E56: =费用!$C56-费用!$D56 -> -5.00
B57: 喜糖盒 | C57: 0.00 | D57: 0.00 | E57: =费用!$C57-费用!$D57 -> 0.00
B58: 艺术书法 | C58: 0.00 | D58: 0.00 | E58: =费用!$C58-费用!$D58 -> 0.00
B59: 印刷/纸品总计 | C59: =SUBTOTAL(109,印刷[估计]) -> 935.00 | D59: =SUBTOTAL(109,印刷[实际]) -> 870.00 | E59: =SUBTOTAL(109,印刷[超出/不足]) -> 65.00
D61: ="是否完成了"&B47&"类别的所有费用？" -> 是否完成了印刷/纸品类别的所有费用？ | E61: 否
B63: 摄影
B65: 类别 | C65: 估计 | D65: 实际 | E65: 超出/不足
B66: 正式拍摄 | C66: 1,300.00 | D66: 1,300.00 | E66: =费用!$C66-费用!$D66 -> 0.00
B67: 加洗 | C67: 25.00 | D67: 25.00 | E67: =费用!$C67-费用!$D67 -> 0.00
B68: 相册 | C68: 100.00 | D68: 100.00 | E68: =费用!$C68-费用!$D68 -> 0.00
B69: 摄像 | C69: 200.00 | D69: 150.00 | E69: =费用!$C69-费用!$D69 -> 50.00
B70: 摄影总计 | C70: =SUBTOTAL(109,摄影[估计]) -> 1,625.00 | D70: =SUBTOTAL(109,摄影[实际]) -> 1,575.00 | E70: =SUBTOTAL(109,摄影[超出/不足]) -> 50.00
D72: ="是否完成了"&B63&"类别的所有费用？" -> 是否完成了摄影类别的所有费用？ | E72: 否
B74: 装饰*
B76: 类别 | C76: 估计 | D76: 实际 | E76: 超出/不足
B77: 座位上的蝴蝶结 | C77: 0.00 | D77: 0.00 | E77: =费用!$C77-费用!$D77 -> 0.00
B78: 餐桌摆饰 | C78: 300.00 | D78: 320.00 | E78: =费用!$C78-费用!$D78 -> -20.00
B79: 蜡烛 | C79: 100.00 | D79: 75.00 | E79: =费用!$C79-费用!$D79 -> 25.00
B80: 照明 | C80: 100.00 | D80: 75.00 | E80: =费用!$C80-费用!$D80 -> 25.00
B81: 气球 | C81: 200.00 | D81: 250.00 | E81: =费用!$C81-费用!$D81 -> -50.00
B82: 装饰总计 | C82: =SUBTOTAL(109,装饰[估计]) -> 700.00 | D82: =SUBTOTAL(109,装饰[实际]) -> 720.00 | E82: =SUBTOTAL(109,装饰[超出/不足]) -> -20.00
B83: *不包括花卉
D85: ="是否完成了"&B74&"类别的所有费用？" -> 是否完成了装饰*类别的所有费用？ | E85: 是
B87: 花卉
B89: 类别 | C89: 估计 | D89: 实际 | E89: 超出/不足
B90: 花束 | C90: 500.00 | D90: 450.00 | E90: =费用!$C90-费用!$D90 -> 50.00
B91: 钮孔花 | C91: 0.00 | D91: 0.00 | E91: =费用!$C91-费用!$D91 -> 0.00
B92: 襟花 | C92: 0.00 | D92: 0.00 | E92: =费用!$C92-费用!$D92 -> 0.00
B93: 典礼 | C93: 400.00 | D93: 400.00 | E93: =费用!$C93-费用!$D93 -> 0.00
B94: 宴会 | C94: 0.00 | D94: 0.00 | E94: =费用!$C94-费用!$D94 -> 0.00
B95: 花卉总计 | C95: =SUBTOTAL(109,花卉[估计]) -> 900.00 | D95: =SUBTOTAL(109,花卉[实际]) -> 850.00 | E95: =SUBTOTAL(109,花卉[超出/不足]) -> 50.00
D97: ="是否完成了"&B87&"类别的所有费用？" -> 是否完成了花卉类别的所有费用？ | E97: 否
B99: 礼品
B101: 类别 | C101: 估计 | D101: 实际 | E101: 超出/不足
B102: 出席人数 | C102: 1,000.00 | D102: 400.00 | E102: =费用!$C102-费用!$D102 -> 600.00
B103: 准配偶 1 | C103: 150.00 | D103: 200.00 | E103: =费用!$C103-费用!$D103 -> -50.00
B104: 准配偶 2 | C104: 150.00 | D104: 200.00 | E104: =费用!$C104-费用!$D104 -> -50.00
B105: 父母 | C105: 25.00 | D105: 25.00 | E105: =费用!$C105-费用!$D105 -> 0.00
B106: 牧师/其他参加者 | C106: 20.00 | D106: 250.00 | E106: =费用!$C106-费用!$D106 -> -230.00
B107: 礼品总计 | C107: =SUBTOTAL(109,礼品[估计]) -> 1,345.00 | D107: =SUBTOTAL(109,礼品[实际]) -> 1,075.00 | E107: =SUBTOTAL(109,礼品[超出/不足]) -> 270.00
D109: ="是否完成了"&B99&"类别的所有费用？" -> 是否完成了礼品类别的所有费用？ | E109: 否
B111: 旅行/交通
B113: 类别 | C113: 估计 | D113: 实际 | E113: 超出/不足
B114: 豪华轿车/有轨电车 | C114: 100.00 | D114: 125.00 | E114: =费用!$C114-费用!$D114 -> -25.00
B115: 停车 | C115: 0.00 | D115: 40.00 | E115: =费用!$C115-费用!$D115 -> -40.00
B116: 出租车 | C116: 0.00 | D116: 0.00 | E116: =费用!$C116-费用!$D116 -> 0.00
B117: 旅行/交通总计 | C117: =SUBTOTAL(109,旅行[估计]) -> 100.00 | D117: =SUBTOTAL(109,旅行[实际]) -> 165.00 | E117: =SUBTOTAL(109,旅行[超出/不足]) -> -65.00
D119: ="是否完成了"&B111&"类别的所有费用？" -> 是否完成了旅行/交通类别的所有费用？ | E119: 是
B121: 其他费用
B123: 类别 | C123: 估计 | D123: 实际 | E123: 超出/不足
B124: 司仪 | C124: 0.00 | D124: 0.00 | E124: =费用!$C124-费用!$D124 -> 0.00
B125: 教堂/婚礼场所费用 | C125: 40.00 | D125: 55.00 | E125: =费用!$C125-费用!$D125 -> -15.00
B126: 婚礼协调员 | C126: 0.00 | D126: 0.00 | E126: =费用!$C126-费用!$D126 -> 0.00
B127: 预演晚宴 | C127: 450.00 | D127: 450.00 | E127: =费用!$C127-费用!$D127 -> 0.00
B128: 订婚聚会 | C128: 20.00 | D128: 50.00 | E128: =费用!$C128-费用!$D128 -> -30.00
B129: 婚前单身派对 | C129: 30.00 | D129: 20.00 | E129: =费用!$C129-费用!$D129 -> 10.00
B130: 沙龙约会 | C130: 45.00 | D130: 46.00 | E130: =费用!$C130-费用!$D130 -> -1.00
B131: 单身聚会 | C131: 0.00 | D131: 0.00 | E131: =费用!$C131-费用!$D131 -> 0.00
B132: 便餐 | C132: 300.00 | D132: 400.00 | E132: =费用!$C132-费用!$D132 -> -100.00
B133: 酒店房间 | C133: 0.00 | D133: 0.00 | E133: =费用!$C133-费用!$D133 -> 0.00
B134: 其他费用总计 | C134: =SUBTOTAL(109,其他费用[估计]) -> 885.00 | D134: =SUBTOTAL(109,其他费用[实际]) -> 1,021.00 | E134: =SUBTOTAL(109,其他费用[超出/不足]) -> -136.00
D136: ="是否完成了"&B121&"类别的所有费用？" -> 是否完成了其他费用类别的所有费用？ | E136: 否

Sheet 计算 (hidden)
B2: 类别 | C2: 估算金额 | D2: 实际 | F2: 估计 | H2: 超出/不足
B3: 服装 | C3: =服装预估总计 -> 9,490.00 | D3: =服装实际总计 -> 9,770.00 | E3: =C3-F3 -> 9,480.00 | F3: =ROUNDUP($C$13/1000,0) -> 10.00 | G3: =$D$13-E3 -> 290 | H3: =D3-C3 -> 280.00
B4: 宴会 | C4: =宴会预估总计 -> 1,050.00 | D4: =宴会实际总计 -> 928.00 | E4: =C4-F4 -> 1,040.00 | F4: =ROUNDUP($C$13/1000,0) -> 10.00 | G4: =$D$13-E4 -> 8730 | H4: =D4-C4 -> -122.00
B5: 音乐 | C5: =音乐娱乐预估总计 -> 600.00 | D5: =音乐娱乐实际总计 -> 500.00 | E5: 590.00 | F5: 10.00 | G5: 9180 | H5: -100.00
B6: 印刷 | C6: =印刷纸品预估总计 -> 935.00 | D6: =印刷纸品实际总计 -> 870.00 | E6: 925.00 | F6: 10.00 | G6: 8845 | H6: -65.00
B7: 摄影 | C7: =摄影预估总计 -> 1,625.00 | D7: =摄影实际总计 -> 1,575.00 | E7: 1,615.00 | F7: 10.00 | G7: 8155 | H7: -50.00
B8: 装饰 | C8: =装饰预估总计 -> 700.00 | D8: =装饰实际总计 -> 720.00 | E8: 690.00 | F8: 10.00 | G8: 9080 | H8: 20.00
B9: 花卉 | C9: =花卉预估总计 -> 900.00 | D9: =花卉实际总计 -> 850.00 | E9: 890.00 | F9: 10.00 | G9: 8880 | H9: -50.00
B10: 礼品 | C10: =礼品预估总计 -> 1,345.00 | D10: =礼品实际总计 -> 1,075.00 | E10: 1,335.00 | F10: 10.00 | G10: 8435 | H10: -270.00
B11: 旅行 | C11: =旅行交通预估总计 -> 100.00 | D11: =旅行交通实际总计 -> 165.00 | E11: 90.00 | F11: 10.00 | G11: 9680 | H11: 65.00
B12: 其他 | C12: =其他费用预估总计 -> 885.00 | D12: =其他费用实际总计 -> 1,021.00 | E12: 875.00 | F12: 10.00 | G12: 8895 | H12: 136.00
B13: 最大值 | C13: =MAX(C3:D12) -> 9770 | D13: =MAX(C3:D12) -> 9770 | F13: 10.00
